bitfinex/quotes_BTCUSD_20220205
["timestamp","ask_amount","ask_price","bid_price","bid_amount"]
[1644038570334,0.05287765,41500.0,41499.0,0.45482901]
[1644038570532,0.03481172,41500.0,41499.0,0.45482901]
[1644038571383,0.03481172,41500.0,41499.0,0.1582053]
[1644038571781,0.03481172,41500.0,41499.0,0.0582053]
[1644038580086,0.00958922,41500.0,41499.0,0.0582053]
[1644038581186,0.00958922,41500.0,41499.0,0.1082053]
[1644038586234,0.00958922,41500.0,41499.0,0.40392808]
[1644038586685,0.00034547,41501.0,41499.0,0.50392808]
[1644038586879,0.02297917,41502.0,41500.0,0.04041078]
[1644038587080,0.00034547,41501.0,41500.0,0.04041078]
[1644038587284,0.0226337,41502.0,41500.0,0.04041078]
[1644038587285,0.02297917,41502.0,41500.0,0.04041078]
[1644038587480,0.02214051,41502.0,41500.0,0.04041078]
[1644038588483,0.03172973,41502.0,41500.0,0.04041078]
[1644038589679,0.03172973,41502.0,41501.0,0.2824487]
[1644038589885,0.03138426,41502.0,41501.0,0.2824487]
[1644038590138,0.03138426,41502.0,41500.0,0.14041078]
[1644038590335,0.03172973,41502.0,41500.0,0.14041078]
[1644038591135,0.03172973,41502.0,41500.0,0.04041078]
[1644038591334,0.03172973,41502.0,41501.0,0.28170043]
[1644038591533,0.03138426,41502.0,41500.0,0.10062352]
[1644038591735,0.03172973,41502.0,41500.0,0.10062352]
[1644038591935,0.03172973,41502.0,41500.0,0.06021274]
[1644038592134,0.03172973,41502.0,41501.0,0.04041078]
[1644038592334,0.03138426,41502.0,41501.0,0.04041078]
[1644038594882,0.02179504,41502.0,41501.0,0.04041078]
[1644038597079,0.02179504,41502.0,41501.0,0.39567896]
[1644038597279,0.02179504,41502.0,41501.0,0.49567896]
[1644038600431,0.02179504,41502.0,41501.0,0.54387896]
[1644038603284,0.02167944,41502.0,41501.0,0.54387896]
[1644038604485,0.02167944,41502.0,41501.0,0.23861078]
[1644038604687,0.02167944,41502.0,41501.0,0.13861078]
[1644038606332,0.02167944,41502.0,41500.0,0.11021274]
[1644038606533,0.02202491,41502.0,41500.0,0.11021274]
[1644038606935,0.00958922,41501.0,41500.0,0.11021274]
[1644038611085,0.00958922,41501.0,41500.0,0.06021274]
[1644038613133,0.02167944,41502.0,41501.0,0.04447776]
[1644038615535,0.02167944,41502.0,41501.0,0.04797953]
[1644038623641,0.02167944,41502.0,41499.0,0.0582053]
[1644038623642,0.30059038,41502.0,41499.0,0.0582053]
[1644038624087,0.23206194,41500.0,41499.0,0.0582053]
[1644038624588,0.02167944,41502.0,41499.0,0.0582053]
[1644038624989,0.02251818,41502.0,41499.0,0.0582053]
[1644038625990,0.02167944,41502.0,41499.0,0.0582053]
[1644038637638,0.01667944,41502.0,41499.0,0.0582053]
[1644038645539,0.01667944,41502.0,41499.0,0.45045264]
[1644038645845,0.00034547,41504.0,41501.0,0.810204]
[1644038646041,0.001,41505.0,41503.0,0.120409]
[1644038646238,0.00034547,41504.0,41503.0,0.120409]
[1644038646489,0.00134547,41505.0,41503.0,0.120409]
[1644038646688,0.001,41505.0,41503.0,0.120409]
[1644038647093,0.00134547,41505.0,41504.0,0.0482]
[1644038647288,0.001,41505.0,41504.0,0.0482]
[1644038648490,0.001,41505.0,41504.0,0.32933733]
[1644038648889,0.001,41505.0,41504.0,0.42933733]
[1644038651546,0.001,41505.0,41504.0,0.1482]
[1644038651944,0.001,41505.0,41504.0,0.0482]
[1644038653648,0.001,41505.0,41503.0,0.170409]
[1644038654084,0.00134547,41505.0,41503.0,0.170409]
[1644038654283,0.001,41505.0,41503.0,0.170409]
[1644038654690,0.001,41505.0,41504.0,0.30623827]
[1644038654893,0.001,41505.0,41504.0,0.40623827]
[1644038657290,0.001,41505.0,41504.0,0.45623827]
[1644038659134,0.001,41505.0,41504.0,0.15]
[1644038659334,0.001,41505.0,41504.0,0.05]
[1644038661685,0.001,41505.0,41503.0,0.320409]
[1644038661987,0.001,41505.0,41504.0,0.05]
[1644038662384,0.001,41505.0,41503.0,0.320409]
[1644038662590,0.001,41505.0,41503.0,0.220409]
[1644038663686,0.001,41505.0,41503.0,0.120409]
[1644038663885,0.001,41505.0,41503.0,0.170409]
[1644038664085,0.001,41505.0,41503.0,0.120409]
[1644038664284,0.001,41505.0,41503.0,0.18062375]
[1644038664685,0.001,41505.0,41503.0,0.23062375]
[1644038667240,0.001,41505.0,41503.0,0.33062375]
[1644038667439,0.001,41505.0,41503.0,0.38062375]
[1644038668340,0.00088233,41505.0,41503.0,0.38062375]
[1644038668541,0.00088233,41505.0,41503.0,0.28062375]
[1644038668741,0.00088233,41505.0,41504.0,0.28552631]
[1644038669688,0.00088233,41505.0,41504.0,0.33552631]
[1644038669888,0.00088233,41505.0,41504.0,0.43552631]
[1644038671688,0.00088233,41505.0,41504.0,0.38552631]
[1644038671888,0.00088233,41505.0,41504.0,0.38372631]
[1644038672086,0.00088233,41505.0,41504.0,0.48372631]
[1644038672488,0.00088233,41505.0,41504.0,0.1482]
[1644038672742,0.00088233,41505.0,41504.0,0.1982]
[1644038673145,0.00088233,41505.0,41504.0,0.0982]
[1644038673441,0.07375138,41505.0,41504.0,0.0482]
[1644038673644,0.07375138,41505.0,41503.0,0.120409]
[1644038673645,0.56350923,41505.0,41503.0,0.120409]
[1644038673944,0.56350923,41505.0,41488.0,0.6427]
[1644038673945,0.3,41504.0,41496.0,0.07371216]
[1644038674143,0.3,41503.0,41496.0,0.07371216]
[1644038674341,0.3,41504.0,41496.0,0.07371216]
[1644038674542,0.25525263,41503.0,41496.0,0.07371216]
[1644038674941,0.25525263,41503.0,41498.0,0.060235]
[1644038675944,0.26736189,41502.0,41498.0,0.060235]
[1644038677087,0.00121688,41505.0,41498.0,0.060235]
[1644038677687,0.00088233,41505.0,41498.0,0.060235]
[1644038677887,0.21581677,41503.0,41498.0,0.060235]
[1644038678087,0.2773878,41502.0,41498.0,0.060235]
[1644038679087,0.21581677,41503.0,41498.0,0.060235]
[1644038679287,0.25745928,41502.0,41498.0,0.060235]
[1644038679487,0.2571192,41502.0,41498.0,0.060235]
[1644038679688,0.21581677,41503.0,41498.0,0.060235]
[1644038679887,0.25917196,41502.0,41498.0,0.120454]
[1644038680141,0.00171932,41505.0,41500.0,0.060218]
[1644038680142,0.00088233,41505.0,41500.0,0.060218]
[1644038680341,0.00171933,41505.0,41500.0,0.060218]
[1644038681143,0.27665953,41505.0,41500.0,0.060218]
[1644038681341,0.27665953,41505.0,41500.0,0.120434]
[1644038681545,0.27749654,41505.0,41500.0,0.120434]
[1644038682144,0.00171934,41505.0,41500.0,0.120434]
[1644038682344,0.00088233,41505.0,41500.0,0.120434]
[1644038682843,0.00171934,41505.0,41500.0,0.120434]
[1644038683043,0.00171934,41505.0,41500.0,0.18064898]
[1644038683644,0.00088233,41505.0,41500.0,0.18064898]
[1644038683899,0.00171934,41505.0,41500.0,0.18064898]
[1644038684898,0.00088233,41505.0,41500.0,0.18064898]
[1644038685100,0.00171934,41505.0,41500.0,0.18064898]
[1644038685695,0.00171934,41505.0,41502.0,0.05]
[1644038685898,0.00171934,41505.0,41503.0,0.060204]
[1644038686100,0.00088233,41505.0,41503.0,0.108404]
[1644038686297,0.00088233,41505.0,41503.0,0.27880901]
[1644038686496,0.00088233,41505.0,41503.0,0.32880901]
[1644038686696,0.00088233,41505.0,41503.0,0.22880901]
[1644038686897,0.00088233,41505.0,41503.0,0.32880901]
[1644038687947,0.00088233,41505.0,41503.0,0.22880901]
[1644038695253,0.00088233,41505.0,41503.0,0.27880901]
[1644038696053,0.00088233,41505.0,41503.0,0.22880901]
[1644038696253,0.00088233,41505.0,41503.0,0.18060901]
[1644038698253,0.00081556,41505.0,41503.0,0.18060901]
[1644038703142,0.00081556,41505.0,41504.0,0.05]
[1644038711341,0.00081556,41505.0,41504.0,0.3326824]
[1644038711541,0.00081556,41505.0,41504.0,0.05]
[1644038711740,0.00081556,41505.0,41504.0,0.15]
[1644038712742,0.00081556,41505.0,41504.0,0.05]
[1644038714792,0.00081556,41505.0,41504.0,2.61339906]
[1644038715194,0.00081556,41505.0,41504.0,2.51384155]
[1644038715589,0.00081556,41505.0,41504.0,0.23266893]
[1644038715991,0.00081556,41505.0,41504.0,0.1]
[1644038716290,0.00081556,41505.0,41503.0,0.18060901]
[1644038719244,0.00081556,41505.0,41503.0,0.20699073]
[1644038720248,0.0007096,41505.0,41503.0,0.20699073]
[1644038721893,0.0007096,41505.0,41504.0,0.28178015]
[1644038722192,0.0007096,41505.0,41503.0,0.28965966]
[1644038722392,0.0007096,41505.0,41503.0,0.20699073]
[1644038722794,0.00105507,41505.0,41503.0,0.20699073]
[1644038723391,0.0007096,41505.0,41503.0,0.20699073]
[1644038723792,0.00105507,41505.0,41503.0,0.20699073]
[1644038724193,0.00105507,41505.0,41503.0,0.25699073]
[1644038724595,0.0007096,41505.0,41503.0,0.25699073]
[1644038724995,0.00105507,41505.0,41503.0,0.25699073]
[1644038725838,0.0007096,41505.0,41503.0,0.25699073]
[1644038726038,0.00105507,41505.0,41503.0,0.25699073]
[1644038727139,0.0007096,41505.0,41503.0,0.25699073]
[1644038727339,0.00105507,41505.0,41503.0,0.25699073]
[1644038727540,0.00105507,41505.0,41504.0,0.0482]
[1644038727739,0.0007096,41505.0,41504.0,0.0482]
[1644038731190,0.0007096,41505.0,41503.0,0.45699073]
[1644038731790,0.00105507,41505.0,41503.0,0.45699073]
[1644038732190,0.0007096,41505.0,41503.0,0.45699073]
[1644038732390,0.00105507,41505.0,41503.0,0.45699073]
[1644038733041,0.0007096,41505.0,41503.0,0.45699073]
[1644038733244,0.00105507,41505.0,41503.0,0.28060901]
[1644038733539,0.00105507,41505.0,41503.0,0.18060901]
[1644038734340,0.0007096,41505.0,41503.0,0.18060901]
[1644038734538,0.00105507,41505.0,41504.0,0.81549335]
[1644038734738,0.0007096,41505.0,41504.0,0.81549335]
[1644038734938,0.0007096,41505.0,41504.0,0.91549335]
[1644038736992,0.00084739,41508.0,41504.0,0.9757044]
[1644038737193,0.00084739,41508.0,41506.0,0.89023068]
[1644038737392,0.00084739,41508.0,41507.0,0.8902309]
[1644038737792,0.00084739,41508.0,41507.0,0.9902309]
[1644038738392,0.00084739,41508.0,41507.0,1.0504419]
[1644038753391,0.00084739,41508.0,41507.0,1.10032569]
[1644038756741,0.00084739,41508.0,41507.0,1.17568546]
[1644038756940,0.00084739,41508.0,41507.0,1.10032569]
[1644038759194,0.00084739,41508.0,41507.0,1.04093518]
[1644038759393,0.00084739,41508.0,41507.0,0.99093518]
[1644038760094,0.00084739,41508.0,41507.0,1.09093518]
[1644038760291,0.00084739,41508.0,41507.0,1.11629905]
[1644038760492,0.00084739,41508.0,41507.0,1.06629905]
[1644038760893,0.00084739,41508.0,41507.0,0.99093518]
[1644038763642,0.00084739,41508.0,41507.0,0.99084893]
[1644038764247,0.00084739,41508.0,41507.0,1.06616466]
[1644038764542,0.00084739,41508.0,41507.0,0.99084893]
[1644038766692,0.00084739,41508.0,41507.0,1.09084893]
[1644038771145,0.00084739,41508.0,41507.0,1.04084893]
[1644038771944,0.00084739,41508.0,41507.0,0.99084893]
[1644038775996,0.00084739,41508.0,41507.0,1.08618119]
[1644038776997,0.00084739,41508.0,41507.0,1.13618119]
[1644038777646,0.00084739,41508.0,41507.0,1.08618119]
[1644038778446,0.01084739,41508.0,41507.0,1.08618119]
[1644038778852,0.3713,41518.0,41507.0,1.08618119]
[1644038778853,0.3905,41520.0,41511.0,0.65]
[1644038779051,0.001,41524.0,41511.0,0.65]
[1644038779052,0.001,41524.0,41518.0,0.05]
[1644038779251,0.001,41524.0,41521.0,0.05]
[1644038779454,0.00034615,41523.0,41521.0,0.05]
[1644038779650,0.02,41529.0,41521.0,0.05]
[1644038779651,0.73034605,41536.0,41522.0,0.77777432]
[1644038779958,0.73034605,41536.0,41529.0,0.81017]
[1644038780250,0.61744605,41536.0,41533.0,0.05]
[1644038780451,0.399,41540.0,41533.0,0.05]
[1644038780452,0.7978892,41549.0,41534.0,0.75]
[1644038780653,0.0009784,41549.0,41538.0,0.05]
[1644038780857,0.36129619,41562.0,41550.0,0.23565983]
[1644038781058,0.3,41558.0,41551.0,0.060144]
[1644038781252,0.20647794,41561.0,41554.0,0.05]
[1644038781507,0.21531907,41566.0,41554.0,0.049]
[1644038781703,0.00884113,41566.0,41554.0,0.049]
[1644038782009,0.00884113,41566.0,41562.0,0.049]
[1644038782010,0.00984112,41566.0,41562.0,0.049]
[1644038782204,0.00984112,41566.0,41563.0,0.0472]
[1644038782205,0.00884113,41566.0,41563.0,0.0472]
[1644038782405,0.00118315,41568.0,41563.0,0.0472]
[1644038783103,0.00118315,41568.0,41564.0,0.060127]
[1644038783304,0.02,41569.0,41564.0,0.060127]
[1644038783707,0.02,41569.0,41568.0,0.04999999]
[1644038783906,0.02,41569.0,41567.0,0.120248]
[1644038784103,0.02,41569.0,41567.0,0.1765136]
[1644038784402,0.02,41569.0,41567.0,0.1265136]
[1644038784603,0.02,41569.0,41568.0,1.11034506]
[1644038784805,0.32,41569.0,41555.0,0.180398]
[1644038785005,0.05000001,41565.0,41544.0,0.120291]
[1644038785260,0.05,41567.0,41556.0,0.02118033]
[1644038785261,0.331113,41562.0,41556.0,0.02118033]
[1644038785455,0.331113,41560.0,41556.0,0.02118033]
[1644038785857,0.53166329,41558.0,41542.0,0.391]
[1644038786058,0.060163,41555.0,41544.0,0.060163]
[1644038786558,0.3,41557.0,41544.0,0.060163]
[1644038786956,0.30924399,41556.0,41544.0,0.060163]
[1644038788157,0.060162,41555.0,41544.0,0.060163]
[1644038788557,0.06334809,41548.0,41544.0,0.060163]
[1644038789197,0.26479278,41548.0,41544.0,0.060163]
[1644038789399,0.06334809,41548.0,41544.0,0.060163]
[1644038789605,0.06334809,41548.0,41537.0,0.03981743]
[1644038789809,0.05000001,41546.0,41537.0,0.03981743]
[1644038790005,0.30948857,41547.0,41533.0,0.060178]
[1644038790006,0.25412122,41544.0,41533.0,0.060178]
[1644038790302,0.3482,41543.0,41525.0,0.03]
[1644038790499,0.08978472,41538.0,41528.0,0.06732397]
[1644038790698,0.08978472,41538.0,41528.0,0.11732396]
[1644038790699,0.0482,41537.0,41528.0,0.11732396]
[1644038790899,0.0482,41537.0,41534.0,0.04999999]
[1644038791301,0.0482,41537.0,41531.0,0.04999999]
[1644038791500,0.0482,41537.0,41535.0,0.04999999]
[1644038791700,0.28974614,41543.0,41535.0,0.04999999]
[1644038791901,0.27442495,41542.0,41535.0,0.04999999]
[1644038792101,0.34043316,41542.0,41532.0,0.04999999]
[1644038792303,0.34043316,41542.0,41532.0,0.17033444]
[1644038792506,0.34043316,41542.0,41535.0,0.060167]
[1644038793348,0.11420821,41542.0,41535.0,0.060167]
[1644038793953,0.04854666,41542.0,41535.0,0.060167]
[1644038794750,0.00034666,41542.0,41535.0,0.060167]
[1644038794951,0.26812284,41543.0,41535.0,0.060167]
[1644038795150,0.00034666,41542.0,41535.0,0.060167]
[1644038795354,0.26812284,41543.0,41535.0,0.060167]
[1644038795555,0.00034666,41542.0,41535.0,0.060167]
[1644038795751,0.2684695,41543.0,41535.0,0.060167]
[1644038795956,0.00034666,41542.0,41535.0,0.060167]
[1644038796153,0.26812284,41543.0,41535.0,0.060167]
[1644038796398,0.06456647,41540.0,41535.0,0.060167]
[1644038798202,0.00034666,41540.0,41535.0,0.060167]
[1644038798397,0.00034666,41541.0,41535.0,0.060167]
[1644038798598,0.27115884,41542.0,41535.0,0.060167]
[1644038798797,0.00034666,41542.0,41535.0,0.060167]
[1644038798997,0.27907985,41542.0,41535.0,0.060167]
[1644038799197,0.32829884,41543.0,41535.0,0.060167]
[1644038799398,0.04854666,41542.0,41535.0,0.060167]
[1644038799600,0.06824024,41539.0,41535.0,0.060167]
[1644038799798,0.19694678,41536.0,41535.0,0.060167]
[1644038799997,0.06824024,41539.0,41535.0,0.060167]
[1644038800246,0.00034666,41538.0,41535.0,0.060167]
[1644038800447,0.06824024,41539.0,41535.0,0.060167]
[1644038800645,0.0685869,41539.0,41535.0,0.060167]
[1644038800851,0.23351928,41537.0,41535.0,0.060167]
[1644038801547,0.00034666,41538.0,41535.0,0.060167]
[1644038801745,0.06824024,41539.0,41535.0,0.060167]
[1644038801948,0.0685869,41539.0,41535.0,0.060167]
[1644038802147,0.06824024,41539.0,41535.0,0.060167]
[1644038802549,0.0685869,41539.0,41535.0,0.060167]
[1644038803909,0.0685869,41539.0,41535.0,0.120332]
[1644038804607,0.00034666,41539.0,41535.0,0.120332]
[1644038804808,0.00034666,41544.0,41535.0,0.120332]
[1644038805009,0.00034666,41545.0,41544.0,0.00011308]
[1644038805205,0.00034666,41544.0,41535.0,0.120332]
[1644038805404,0.00371285,41545.0,41535.0,0.120332]
[1644038805606,0.00371285,41545.0,41539.0,0.04999999]
[1644038805607,0.00336619,41545.0,41539.0,0.04999999]
[1644038805806,0.00336619,41545.0,41544.0,0.060155]
[1644038806010,0.00371285,41545.0,41544.0,0.060155]
[1644038806205,0.00034666,41547.0,41544.0,0.060155]
[1644038806407,0.00034666,41550.0,41544.0,0.060155]
[1644038806607,0.21651244,41550.0,41544.0,0.060155]
[1644038806807,0.2168591,41550.0,41544.0,0.060155]
[1644038807208,0.30360894,41550.0,41544.0,0.060155]
[1644038807664,0.08674984,41550.0,41544.0,0.060155]
[1644038808866,0.26968252,41549.0,41544.0,0.060155]
[1644038809068,0.08674984,41550.0,41544.0,0.060155]
[1644038809267,0.00034666,41549.0,41544.0,0.060155]
[1644038809468,0.00034666,41551.0,41544.0,0.060155]
[1644038809668,0.00034666,41554.0,41544.0,0.060155]
[1644038809870,0.00034666,41555.0,41548.0,0.11014899]
[1644038810072,0.00336567,41556.0,41551.0,0.04999999]
[1644038810273,0.00034666,41555.0,41551.0,0.04999999]
[1644038810469,0.07274806,41556.0,41551.0,0.04999999]
[1644038810670,0.07274806,41556.0,41554.0,0.04999999]
[1644038810671,0.00034666,41555.0,41554.0,0.04999999]
[1644038810870,0.00034666,41556.0,41554.0,0.04999999]
[1644038811068,0.21350999,41562.0,41556.0,0.060139]
[1644038811069,0.00034666,41561.0,41556.0,0.060139]
[1644038811274,0.00336533,41563.0,41556.0,0.060139]
[1644038811504,0.00034666,41561.0,41556.0,0.060139]
[1644038811699,0.06819933,41559.0,41556.0,0.060139]
[1644038812101,0.21489915,41557.0,41551.0,0.220297]
[1644038812300,0.2424212,41555.0,41547.0,0.04999999]
[1644038812499,0.24187471,41555.0,41551.0,0.060154]
[1644038812799,0.00034666,41556.0,41551.0,0.060154]
[1644038813000,0.060157,41556.0,41551.0,0.060154]
[1644038813201,0.06050366,41556.0,41551.0,0.060154]
[1644038813600,0.18853198,41555.0,41551.0,0.060154]
[1644038813903,0.00034666,41555.0,41551.0,0.060154]
[1644038814099,0.26132992,41556.0,41551.0,0.060154]
[1644038814300,0.00034666,41555.0,41551.0,0.060154]
[1644038814500,0.00034666,41556.0,41551.0,0.060154]
[1644038815250,0.00034666,41561.0,41551.0,0.060154]
[1644038815451,0.00034666,41558.0,41553.0,0.120281]
[1644038815655,0.00336351,41562.0,41557.0,0.04999999]
[1644038815656,0.00034666,41561.0,41557.0,0.04999999]
[1644038815951,0.00084076,41567.0,41560.0,0.04999999]
[1644038815952,0.00336341,41564.0,41560.0,0.04999999]
[1644038816151,0.00336341,41564.0,41560.0,0.09819999]
[1644038816152,0.00034666,41561.0,41560.0,0.09819999]
[1644038816351,0.00336341,41564.0,41560.0,0.09819999]
[1644038816556,0.0870698,41563.0,41560.0,0.21845599]
[1644038816750,0.08672314,41563.0,41560.0,0.21845599]
[1644038816951,0.00034666,41564.0,41560.0,0.21845599]
[1644038817151,0.00034666,41566.0,41564.0,0.060131]
[1644038817351,0.05,41566.0,41560.0,0.168456]
[1644038817550,0.00034666,41566.0,41563.0,0.00325682]
[1644038817750,0.04674318,41565.0,41560.0,0.168456]
[1644038817952,0.00118749,41567.0,41560.0,0.168456]
[1644038817953,0.04674318,41561.0,41560.0,0.168456]
[1644038818152,0.04674318,41561.0,41560.0,0.17171282]
[1644038818355,0.04674318,41561.0,41560.0,0.168456]
[1644038818554,0.04674318,41561.0,41555.0,0.18365382]
[1644038818555,0.04674318,41561.0,41557.0,0.060147]
[1644038818753,0.12564623,41565.0,41551.0,0.02045968]
[1644038818754,0.04674318,41558.0,41551.0,0.02045968]
[1644038819211,0.26306336,41554.0,41551.0,0.14075968]
[1644038819401,0.26306336,41554.0,41551.0,0.1203]
[1644038819402,0.07522332,41553.0,41551.0,0.1203]
[1644038819608,0.04674318,41552.0,41551.0,0.1203]
[1644038820402,0.04674318,41552.0,41550.0,0.120299]
[1644038820604,0.23527272,41552.0,41550.0,0.120299]
[1644038821007,0.22527272,41552.0,41550.0,0.120299]
[1644038821205,0.03174318,41551.0,41550.0,0.120299]
[1644038821403,0.11651378,41551.0,41550.0,0.120299]
[1644038821604,0.11651378,41551.0,41550.0,0.115299]
[1644038822404,0.11151378,41551.0,41550.0,0.115299]
[1644038822852,0.10902252,41551.0,41550.0,0.115299]
[1644038823453,0.02674318,41551.0,41550.0,0.115299]
[1644038824653,0.10925999,41551.0,41550.0,0.115299]
[1644038826254,0.02674318,41551.0,41550.0,0.115299]
[1644038827496,0.10902847,41551.0,41550.0,0.115299]
[1644038828296,0.02674318,41551.0,41550.0,0.115299]
[1644038829699,0.10350537,41551.0,41550.0,0.115299]
[1644038830154,0.02674318,41551.0,41550.0,0.115299]
[1644038831156,0.11193373,41551.0,41550.0,0.115299]
[1644038832959,0.02674318,41551.0,41550.0,0.115299]
[1644038833159,0.00034666,41554.0,41550.0,0.17543933]
[1644038833358,0.00034666,41553.0,41550.0,0.17543933]
[1644038833563,0.02674318,41555.0,41552.0,0.060143]
[1644038833759,0.00034666,41554.0,41552.0,0.060143]
[1644038834001,0.02674318,41555.0,41552.0,0.060143]
[1644038834301,0.11154983,41555.0,41552.0,0.060143]
[1644038834508,0.11120317,41555.0,41552.0,0.060143]
[1644038839653,0.11120317,41555.0,41552.0,0.05959652]
[1644038842903,0.11120317,41555.0,41552.0,0.05759652]
[1644038843306,0.02674318,41555.0,41552.0,0.05759652]
[1644038844504,0.08452123,41553.0,41552.0,0.05759652]
[1644038844906,0.18852647,41554.0,41552.0,0.08085334]
[1644038845558,0.02708984,41555.0,41552.0,0.08085334]
[1644038845758,0.02674318,41555.0,41552.0,0.08085334]
[1644038846658,0.02674318,41555.0,41552.0,0.13085334]
[1644038847258,0.02674318,41555.0,41552.0,0.42194267]
[1644038847458,0.02674318,41555.0,41552.0,0.52194267]
[1644038847860,0.02674318,41555.0,41552.0,0.47194267]
[1644038848460,0.02674318,41555.0,41552.0,0.18085334]
[1644038848905,0.02674318,41555.0,41552.0,0.3682664]
[1644038849298,0.02674318,41555.0,41552.0,0.4682664]
[1644038850400,0.02674318,41555.0,41552.0,0.18085334]
[1644038850797,0.02674318,41555.0,41552.0,0.08085334]
[1644038851797,0.02674318,41555.0,41552.0,0.13085334]
[1644038856403,0.02674318,41555.0,41552.0,0.08085334]
[1644038857603,0.51180455,41560.0,41552.0,0.41144982]
[1644038857604,0.00034655,41558.0,41552.0,0.41144982]
[1644038857800,0.02674318,41560.0,41557.0,0.120272]
[1644038857801,0.00034654,41559.0,41557.0,0.120272]
[1644038858204,0.02674318,41560.0,41557.0,0.120272]
[1644038858399,0.02708972,41560.0,41559.0,0.02325682]
[1644038858600,0.02708972,41560.0,41557.0,0.120272]
[1644038858601,0.02674318,41560.0,41557.0,0.120272]
[1644038859402,0.02674318,41560.0,41557.0,0.060136]
[1644038864206,0.379313,41559.0,41552.0,0.1203]
[1644038864404,0.23988132,41553.0,41552.0,0.1203]
[1644038864609,0.57099432,41553.0,41552.0,0.1203]
[1644038865006,0.64021434,41553.0,41552.0,0.1203]
[1644038866403,0.92278382,41553.0,41552.0,0.1203]
[1644038867004,0.92269295,41553.0,41552.0,0.1203]
[1644038867850,0.64012347,41553.0,41552.0,0.1203]
[1644038868052,0.75,41551.0,41544.0,0.160153]
[1644038868256,0.2318638,41541.0,41540.0,0.22514315]
[1644038868455,0.2318638,41541.0,41539.0,0.25895614]
[1644038868456,0.33628927,41541.0,41539.0,0.01837814]
[1644038869451,0.331113,41540.0,41539.0,0.01837814]
[1644038870351,0.02674318,41541.0,41536.0,0.02325682]
[1644038870552,0.02674318,41537.0,41536.0,0.02325682]
[1644038870752,0.02674318,41537.0,41534.0,0.120342]
[1644038872009,0.0854728,41536.0,41534.0,0.070342]
[1644038873110,0.0854728,41536.0,41534.0,0.060342]
[1644038874513,0.0854728,41536.0,41534.0,0.08359882]
[1644038874914,0.02674318,41537.0,41534.0,0.08359882]
[1644038876154,0.11349088,41537.0,41534.0,0.08359882]
[1644038876358,0.11349088,41537.0,41534.0,0.060342]
[1644038876956,0.11349088,41537.0,41535.0,0.02325682]
[1644038877156,0.02674318,41537.0,41535.0,0.02325682]
[1644038878460,0.02674318,41537.0,41536.0,0.060163]
[1644038879104,0.02674318,41537.0,41536.0,0.08341982]
[1644038879906,0.02674318,41537.0,41536.0,0.060163]
[1644038882949,0.26674318,41537.0,41536.0,0.060163]
[1644038885253,0.18523038,41537.0,41536.0,0.060163]
[1644038886154,0.18523038,41537.0,41536.0,1.260163]
[1644038886404,0.18523038,41537.0,41536.0,1.360163]
[1644038894098,0.37141796,41546.0,41545.0,0.64227785]
[1644038894299,0.0214051,41550.0,41545.0,0.64227785]
[1644038894498,0.38525338,41547.0,41545.0,0.64227785]
[1644038894902,0.07523089,41546.0,41545.0,0.64227785]
[1644038895106,0.060163,41547.0,41545.0,0.64227785]
[1644038895299,0.0214051,41550.0,41545.0,0.70243985]
[1644038896000,0.228723,41550.0,41545.0,0.70243985]
[1644038897203,0.060155,41549.0,41545.0,0.70243985]
[1644038897673,0.2179332,41547.0,41545.0,0.70243985]
[1644038898272,0.30341648,41547.0,41545.0,0.70243985]
[1644038898473,0.08548328,41547.0,41545.0,0.70243985]
[1644038898673,0.060161,41547.0,41545.0,0.70243985]
[1644038899675,0.060161,41547.0,41545.0,0.64227785]
[1644038899880,0.07736332,41546.0,41545.0,0.64227785]
[1644038901281,0.300161,41547.0,41545.0,0.64227785]
[1644038905557,0.2769013,41546.0,41545.0,0.64227785]
[1644038907561,0.6562143,41546.0,41545.0,0.64227785]
[1644038907765,0.7062143,41546.0,41545.0,0.64227785]
[1644038908169,0.71444224,41546.0,41545.0,0.64227785]
[1644038908362,0.71444224,41546.0,41545.0,0.09113464]
[1644038908760,0.71444224,41546.0,41545.0,0.08613464]
[1644038910010,0.75,41545.0,41543.0,0.000838]
[1644038910312,0.75,41545.0,41525.0,0.14341595]
[1644038910313,0.060189,41541.0,41525.0,0.09341595]
[1644038910505,0.43439056,41540.0,41525.0,0.120374]
[1644038910706,0.51399341,41540.0,41525.0,0.120374]
[1644038910903,0.20773485,41535.0,41525.0,0.120374]
[1644038911105,0.33168694,41530.0,41525.0,0.120374]
[1644038911304,0.08074619,41530.0,41525.0,0.21390337]
[1644038911803,0.08074619,41530.0,41525.0,0.120374]
[1644038912003,0.33726064,41535.0,41525.0,0.21439049]
[1644038912204,0.25854927,41533.0,41525.0,0.12086112]
[1644038912404,0.25854927,41533.0,41525.0,0.21439049]
[1644038912654,0.25854927,41533.0,41525.0,0.12086112]
[1644038913054,0.31873127,41533.0,41525.0,0.120374]
[1644038913255,0.31873127,41533.0,41528.0,0.060184]
[1644038914254,0.38214044,41533.0,41528.0,0.060184]
[1644038914454,0.38214044,41533.0,41528.0,0.06100042]
[1644038914655,0.060182,41533.0,41528.0,0.06100042]
[1644038915056,0.0482,41535.0,41528.0,0.06100042]
[1644038915256,0.0482,41535.0,41532.0,0.05]
[1644038915657,0.30404482,41535.0,41532.0,0.05]
[1644038915859,0.06340167,41534.0,41533.0,0.060181]
[1644038916058,0.34000994,41534.0,41533.0,0.060181]
[1644038916505,0.67112294,41534.0,41533.0,0.060181]
[1644038918210,0.60772127,41534.0,41533.0,0.060181]
[1644038918508,0.26137613,41536.0,41533.0,0.060181]
[1644038918709,0.060178,41537.0,41533.0,0.060181]
[1644038919108,0.26030877,41536.0,41533.0,0.060181]
[1644038919308,0.21403579,41536.0,41533.0,0.06097117]
[1644038919508,0.331113,41535.0,41533.0,0.06097117]
[1644038920007,0.47680982,41536.0,41533.0,0.06097117]
[1644038920255,0.47680982,41536.0,41533.0,0.060181]
[1644038921155,0.06711753,41534.0,41533.0,0.060181]
[1644038922057,0.060178,41537.0,41533.0,0.060181]
[1644038922859,0.060178,41537.0,41533.0,0.06097185]
[1644038923264,0.59960437,41537.0,41533.0,0.06097185]
[1644038923664,0.86396101,41537.0,41533.0,0.06097185]
[1644038923936,0.86396101,41537.0,41533.0,0.060181]
[1644038924126,0.331113,41536.0,41533.0,0.06097185]
[1644038925030,0.331113,41536.0,41533.0,0.060181]
[1644038926827,0.331113,41536.0,41533.0,0.060184]
[1644038927029,0.36759892,41537.0,41533.0,0.060184]
[1644038927759,0.36759892,41537.0,41533.0,0.0609748]